[Event "Istanbul Open 2018"]
[Site "Istanbul"]
[Date "2018.09.02"]
[Round "2"]
[White "Kaymak, Cenk Bahadir"]
[Black "Gundogan, Sinem Cagla"]
[Result "0-1"]
[ECO "E01"]
[WhiteElo "1543"]
[BlackElo "1834"]
[Annotator "NA"]
[PlyCount "108"]
[EventDate "2018.09.02"]
[EventType "swiss"]
[EventCountry "TUR"]
[SourceTitle "playchess.com"]
[Source "ChessBase"]
[SourceQuality "1"]
[TimeControl "5400+30"]

1. d4 {[%emt 0:04:30]} d5 {[%emt 0:00:30]} 2. Nf3 {[%emt 0:00:30]} Nf6 {[%emt 0:00:30]} 3. g3 {[%emt 0:00:30]} c6 {[%emt 0:01:30]} 4. Bg2 {[%emt 0:00:00]} Nbd7 {[%emt 0:02:30]} 5. O-O {[%emt 0:00:00]} e6 {[%emt 0:00:30]} 6. b3 {[%emt 0:02:30]} Bd6 {[%emt 0:01:30]} 7. Bb2 {[%emt 0:00:30]} Qc7 {[%emt 0:00:30]} 8. c4 {[%emt 0:01:30]} b6 {[%emt 0:00:30]} 9. Nbd2 {[%emt 0:02:30] E01: Catalan: Early deviations} O-O {[%emt 0:04:30]} 10. Re1 {[%emt 0:01:30]} Bb7 {[%emt 0:00:00]} 11. Rc1 {[%emt 0:01:30]} c5 $146 {[%emt 0:00:00]} ({Predecessor:} 11... Rad8 12. Qc2 Rfe8 13. e4 dxe4 14. Nxe4 Nxe4 15. Rxe4 c5 16. Rh4 {½-½ (49) Bryakin,M (2333)-Mestnikov,A (2241) Moscow 2017}) 12. cxd5 {[%emt 0:05:30]} exd5 {[%emt 0:00:00]} 13. e3 {[%emt 0:07:30]} Rfc8 {[%emt 0:00:00]} 14. dxc5 {[%emt 0:02:30]} bxc5 {[%emt 0:00:00]} 15. Qc2 {[%emt 0:08:30]} (15. e4 $5 dxe4 16. Ng5 $14) 15... a5 {[%emt 0:00:00]} 16. Ba1 {[%emt 0:01:30] [#]} a4 $1 {[%emt 0:00:00]} 17. Red1 {[%emt 0:01:30]} axb3 {[%emt 0:00:00]} 18. axb3 {[%emt 0:01:30]} Ra7 {[%emt 0:00:00]} 19. Bc3 {[%emt 0:03:30]} Rca8 {[%emt 0:00:00]} 20. Ra1 {[%emt 0:00:30]} Rxa1 {[%emt 0:00:00]} 21. Rxa1 {[%emt 0:00:30]} Rxa1+ {[%emt 0:00:00]} 22. Bxa1 {[%emt 0:00:30]} Ba6 {[%emt 0:00:00]} 23. Qa2 {[%emt 0:04:30]} Qb6 {[%emt 0:00:00]} 24. h3 {[%emt 0:01:30]} h6 {[%emt 0:00:00]} 25. Bf1 {[%emt 0:02:30]} Bxf1 {[%emt 0:00:00]} 26. Kxf1 {[%emt 0:00:30]} Qb5+ {[%emt 0:00:00]} 27. Kg2 {[%emt 0:00:30]} Qd3 {[%emt 0:00:00]} 28. Qa8+ {[%emt 0:02:30]} Kh7 {[%emt 0:00:00]} 29. Qc6 {[%emt 0:01:30]} Bf8 {[%emt 0:00:00]} 30. Qc8 {[%emt 0:02:30]} ({Better is} 30. Qb7 $16) 30... Be7 {[%emt 0:00:00]} 31. Qc7 {[%emt 0:00:30]} (31. Bxf6 $14 Nxf6 32. Qc7) 31... Qf5 {[%emt 0:00:00]} 32. Qc6 {[%emt 0:14:30]} Qe6 {[%emt 0:00:00]} 33. Qa4 {[%emt 0:03:30]} Bd6 {[%emt 0:00:00]} 34. Qh4 {[%emt 0:01:30]} Kg8 {[%emt 0:00:00]} 35. Qa4 {[%emt 0:00:30]} Ne5 {[%emt 0:02:47]} 36. Nxe5 {[%emt 0:01:30]} Bxe5 {[%emt 0:00:07]} 37. Bxe5 {[%emt 0:05:36]} Qxe5 {[%emt 0:00:07]} 38. Qb5 {[%emt 0:01:20]} Qc3 {[%emt 0:01:41]} 39. Qe2 {[%emt 0:05:22]} Qc2 {[%emt 0:00:31]} 40. Kf1 Ne4 41. Nxe4 Qxe4 42. Qb5 c4 43. bxc4 dxc4 44. Qb8+ Kh7 45. Qf4 Qd3+ 46. Ke1 c3 47. e4 Qb1+ 48. Ke2 Kg8 49. Qf5 Qa2+ 50. Kd3 Qd2+ 51. Kc4 g6 52. Qc8+ Kg7 53. Qc5 c2 $19 54. Qe5+ Kh7 0-1

[Event "Istanbul Open 2018"]
[Site "Istanbul"]
[Date "2018.09.02"]
[Round "2"]
[White "Ozgur, Sina"]
[Black "Yetkin, Ayhan"]
[Result "0-1"]
[ECO "A56"]
[WhiteElo "1524"]
[BlackElo "1801"]
[Annotator "NA"]
[PlyCount "132"]
[EventDate "2018.09.02"]
[EventType "swiss"]
[EventCountry "TUR"]
[SourceTitle "playchess.com"]
[Source "ChessBase"]
[SourceQuality "1"]
[TimeControl "5400+30"]

1. d4 {[%emt 0:00:30]} Nf6 {[%emt 0:05:30]} 2. c4 {[%emt 0:00:00]} c5 {[%emt 0:01:30]} 3. d5 {[%emt 0:00:00]} e5 {[%emt 0:00:30]} 4. Nc3 {[%emt 0:00:30]} d6 {[%emt 0:00:30]} 5. e4 {[%emt 0:00:30]} Be7 {[%emt 0:02:00]} 6. Nf3 {[%emt 0:01:30]} O-O {[%emt 0:01:30]} 7. Be2 {[%emt 0:02:30]} Nbd7 {[%emt 0:00:30]} 8. O-O {[%emt 0:01:30]} a6 {[%emt 0:05:30]} 9. Bg5 {[%emt 0:01:30] A56: Czech Benoni} (9. a3 Ne8 10. b4 b6 11. Rb1 g6 12. Bh6 Ng7 13. Qd2 Nf6 14. Ne1 Kh8 15. Nd3 Ng8 16. Be3 f5 17. f3 {1-0 (49) So,W (2668)-Flores,D (2615) Khanty-Mansiysk 2010}) 9... Ne8 {[%emt 0:09:30]} 10. Be3 {[%emt 0:02:30]} g6 {[%emt 0:01:30]} 11. Nd2 {[%emt 0:07:30]} Bg5 {[%emt 0:13:30]} 12. f4 {[%emt 0:07:30]} ({White should try} 12. a3 $14) 12... exf4 $146 {[%emt 0:00:30]} ({Predecessor:} 12... Bh6 13. Rf2 {0-1 (57) Choque Paredes,J-Padilla,H Peru 2000}) 13. Bxf4 {[%emt 0:00:30]} Bxf4 {[%emt 0:03:30]} 14. Rxf4 {[%emt 0:00:00]} Ne5 {[%emt 0:06:30]} 15. Qf1 {[%emt 0:09:00]} Ng7 {[%emt 0:07:30]} 16. Rf6 {[%emt 0:12:30]} Nf5 {[%emt 0:05:30]} (16... Bd7 $15) 17. Rxf5 $1 {[%emt 0:02:30]} gxf5 {[%emt 0:00:00]} 18. exf5 {[%emt 0:00:30]} f6 {[%emt 0:07:00]} 19. Nde4 {[%emt 0:02:30]} Qe7 {[%emt 0:04:30]} 20. Qf4 {[%emt 0:02:30]} Bd7 {[%emt 0:02:30]} 21. g4 {[%emt 0:06:30] [#]} ({Better is} 21. a4 $14) 21... Kh8 {[%emt 0:03:34]} ({Black should try} 21... b5 $1 $15 {[%mdl 512]}) 22. Kh1 {[%emt 0:00:00]} (22. a4 $1 $14) 22... Rg8 {[%emt 0:02:05]} 23. Rg1 {[%emt 0:01:00]} Nf7 {[%emt 0:06:32]} 24. h4 {[%emt 0:00:30]} h6 {[%emt 0:01:13]} 25. Rg2 {[%emt 0:14:30]} Rg7 {[%emt 0:03:29]} 26. g5 {[%emt 0:04:37]} hxg5 {[%emt 0:00:32]} 27. hxg5 {[%emt 0:00:23]} Rh7+ {[%emt 0:04:38]} 28. Rh2 {[%emt 0:00:48]} fxg5 {[%emt 0:02:16]} 29. Rxh7+ {[%emt 0:00:52]} Kxh7 {[%emt 0:00:01]} 30. Qh2+ {[%emt 0:00:42]} Kg8 {[%emt 0:01:22]} 31. f6 {[%emt 0:01:05]} Qf8 {[%emt 0:00:29]} 32. Bh5 {[%emt 0:00:40]} Bf5 {[%emt 0:00:59]} 33. Qf2 Qh6 34. Qxf5 Qxh5+ 35. Kg1 Re8 36. Qd7 Rd8 37. Qe6 Kf8 38. Qe7+ Kg8 39. Qe6 g4 40. Ne2 b5 41. N2g3 Qh4 42. Qf5 Qh7 43. Qe6 Qg6 44. Nf5 Kh8 45. Nexd6 Nxd6 46. Nxd6 Qb1+ 47. Kg2 Qxb2+ 48. Kg1 Qa1+ 49. Kg2 Qxa2+ 50. Kg1 Qb1+ 51. Kg2 Qc2+ 52. Kg1 Qd1+ 53. Kg2 Qf3+ 54. Kg1 Qg3+ 55. Kf1 Qxd6 56. Qf7 Qd7 57. Qh5+ Qh7 58. Qe5 Qd3+ 59. Kg2 Qf3+ 60. Kg1 Qd1+ 61. Kg2 Qd2+ 62. Kf1 Qh6 63. f7+ Kh7 64. Qf5+ $19 Kg7 65. Kg2 Qh3+ 66. Kg1 Qg3+ 0-1

[Event "Istanbul Open 2018"]
[Site "Istanbul"]
[Date "2018.09.02"]
[Round "2"]
[White "Ozen, Metehan"]
[Black "Acar, Cengiz Can"]
[Result "1/2-1/2"]
[ECO "B13"]
[WhiteElo "1438"]
[BlackElo "1755"]
[Annotator "NA"]
[PlyCount "49"]
[EventDate "2018.09.02"]
[EventType "swiss"]
[EventCountry "TUR"]
[SourceTitle "playchess.com"]
[Source "ChessBase"]
[SourceQuality "1"]
[TimeControl "5400+30"]

1. d4 {[%emt 0:00:30]} g6 {[%emt 0:00:30]} 2. Nf3 {[%emt 0:00:00]} Bg7 {[%emt 0:00:30]} 3. Bf4 {[%emt 0:00:00]} c5 {[%emt 0:00:30]} 4. e3 {[%emt 0:00:30]} Nf6 {[%emt 0:05:30]} 5. c3 {[%emt 0:00:00]} cxd4 {[%emt 0:04:30]} 6. exd4 {[%emt 0:00:00]} d5 {[%emt 0:01:30]} 7. Nbd2 {[%emt 0:00:30]} O-O {[%emt 0:01:30]} 8. Bd3 {[%emt 0:00:30]} Nc6 {[%emt 0:00:00]} 9. h3 {[%emt 0:00:30]} Re8 {[%emt 0:01:00]} 10. O-O {[%emt 0:00:30]} Nh5 {[%emt 0:00:30]} 11. Bh2 {[%emt 0:00:30]} e5 {[%emt 0:00:30]} 12. dxe5 {[%emt 0:00:00]} Nxe5 {[%emt 0:00:00]} 13. Nxe5 {[%emt 0:01:00]} Bxe5 {[%emt 0:00:00]} 14. Bxe5 {[%emt 0:00:30]} Rxe5 {[%emt 0:00:30]} 15. Nf3 {[%emt 0:00:30]} Re8 {[%emt 0:03:30]} 16. Re1 {[%emt 0:07:30]} Rxe1+ {[%emt 0:04:30]} 17. Qxe1 {[%emt 0:00:30]} Be6 {[%emt 0:04:30]} 18. Nd4 {[%emt 0:03:30]} Nf4 {[%emt 0:04:30]} 19. Bf1 {[%emt 0:00:30]} Qg5 {[%emt 0:00:30]} 20. Nxe6 {[%emt 0:01:30]} fxe6 {[%emt 0:12:30]} 21. Qe3 {[%emt 0:02:30]} e5 {[%emt 0:00:30]} 22. g3 {[%emt 0:00:30]} Ne6 {[%emt 0:11:30]} 23. Qxg5 {[%emt 0:01:30]} Nxg5 {[%emt 0:01:30]} 24. Bg2 {[%emt 0:00:30]} Rd8 {[%emt 0:03:30]} 25. Rd1 {[%emt 0:01:30]} 1/2-1/2

[Event "Istanbul Open 2018"]
[Site "Istanbul"]
[Date "2018.09.03"]
[Round "3"]
[White "Mohannad, Farhan"]
[Black "Gulsoy, Mustafa Alpago"]
[Result "1/2-1/2"]
[ECO "D37"]
[WhiteElo "2201"]
[BlackElo "2061"]
[Annotator "NA"]
[PlyCount "95"]
[EventDate "2018.09.02"]
[EventType "swiss"]
[EventCountry "TUR"]
[SourceTitle "playchess.com"]
[Source "ChessBase"]
[SourceQuality "1"]
[TimeControl "5400+30"]

1. d4 {[%emt 0:00:30]} Nf6 {[%emt 0:08:30]} 2. c4 {[%emt 0:00:00]} e6 {[%emt 0:00:30]} 3. Nf3 {[%emt 0:00:00]} d5 {[%emt 0:00:30]} 4. Nc3 {[%emt 0:00:30]} a6 {[%emt 0:00:30]} 5. cxd5 {[%emt 0:00:30]} exd5 {[%emt 0:00:30]} 6. Bg5 {[%emt 0:00:00] D37: Queen's Gambit Declined: 5 Bf4} Be7 {[%emt 0:00:30]} (6... Be6 7. e3 Nbd7 8. Bd3 Bd6 9. Bf4 Qe7 10. O-O O-O 11. h3 Rfe8 12. Qc2 {½-½ (12) Aronian,L (2805)-Carlsen,M (2837) Riadh 2017}) 7. e3 {[%emt 0:00:00]} h6 {[%emt 0:01:30] LiveBook: 5 Games} 8. Bh4 {[%emt 0:00:30]} O-O {[%emt 0:01:30]} 9. Bd3 {[%emt 0:00:30]} Re8 {[%emt 0:03:30]} 10. Qc2 {[%emt 0:00:30]} c6 {[%emt 0:01:30]} 11. O-O {[%emt 0:00:30]} Ne4 {[%emt 0:02:30]} 12. Bxe7 {[%emt 0:00:00]} Qxe7 {[%emt 0:00:30]} 13. Bxe4 {[%emt 0:01:00]} dxe4 {[%emt 0:00:00]} 14. Nd2 {[%emt 0:00:30]} Bf5 {[%emt 0:00:00] [#]} 15. f3 $1 {[%emt 0:04:30]} Qg5 {[%emt 0:01:30]} 16. fxe4 $146 {[%emt 0:00:30]} Qxe3+ {[%emt 0:00:30]} 17. Kh1 {[%emt 0:00:00]} Bg6 {[%emt 0:00:00]} 18. d5 {[%emt 0:02:00]} Nd7 {[%emt 0:04:00]} 19. dxc6 {[%emt 0:05:30]} bxc6 {[%emt 0:00:30]} 20. Rae1 {[%emt 0:00:30]} Qg5 {[%emt 0:01:30]} 21. Nf3 {[%emt 0:01:30]} Qg4 {[%emt 0:04:30]} 22. h3 {[%emt 0:02:30]} Qh5 {[%emt 0:03:30]} 23. Nd4 c5 24. Nf5 Re5 25. Qd3 Nf6 26. Qd6 Re6 27. Qxc5 Rae8 {[%emt 0:58:30]} 28. b4 {[%emt 1:18:00]} Nxe4 {[%emt 0:10:30]} 29. Rxe4 {[%emt 0:06:30]} Rxe4 {[%emt 0:00:30]} 30. Nxe4 {[%emt 0:00:00]} Rxe4 {[%emt 0:00:30]} 31. Ne7+ {[%emt 0:01:31]} Kh7 {[%emt 0:01:00]} 32. Nxg6 {[%emt 0:00:38]} Qxc5 {[%emt 0:01:30]} 33. bxc5 {[%emt 0:00:08]} Kxg6 {[%emt 0:00:30]} 34. Rc1 {[%emt 0:00:55]} Re7 {[%emt 1:16:00]} 35. Rb1 {[%emt 1:35:13]} Rc7 {[%emt 0:00:30]} 36. Rb6+ {[%emt 0:00:30]} Kf5 {[%emt 0:00:30]} 37. c6 {[%emt 0:00:30]} a5 $1 {[%emt 0:00:30]} 38. Ra6 {[%emt 0:00:30]} Ke6 {[%emt 0:00:30]} 39. g4 {[%emt 0:00:30]} Kd5 {[%emt 0:00:30]} 40. Rxa5+ {[%emt 0:00:30]} Kxc6 {[%emt 0:00:30]} 41. Re5 {[%emt 0:00:22]} Kd6 {[%emt 0:00:30]} 42. Re2 {[%emt 0:00:08]} Rc3 {[%emt 0:00:30]} 43. Kg2 {[%emt 0:00:04]} g5 {[%emt 0:00:30]} 44. a4 {[%emt 0:01:38]} Ra3 {[%emt 0:00:30]} 45. Re4 {[%emt 0:00:04]} Ra2+ {[%emt 0:00:30]} 46. Kf3 {[%emt 0:00:19]} Ra3+ {[%emt 0:00:00]} 47. Kg2 {[%emt 0:00:00]} Ra2+ {[%emt 0:01:00]} 48. Kf3 $11 {[%emt 0:01:19]} 1/2-1/2

[Event "Istanbul Open 2018"]
[Site "Istanbul"]
[Date "2018.09.03"]
[Round "3"]
[White "Abishli, Oghuz"]
[Black "Acarbay, Aydin"]
[Result "1-0"]
[ECO "D94"]
[WhiteElo "2099"]
[BlackElo "1894"]
[Annotator "NA RC"]
[PlyCount "91"]
[EventDate "2018.09.02"]
[EventType "swiss"]
[EventCountry "TUR"]
[SourceTitle "playchess.com"]
[Source "ChessBase"]
[SourceQuality "1"]
[TimeControl "5400+30"]

{[%evp 14,90,48,25,32767,32767,32767,32767,32767,98,32767,32767,32767,32767,32767,32767,32767,32767,32767,32767,32767,32767,32767,32767,168,174,32767,32767,32767,32767,32767,32767,32767,32767,32767,32767,32767,141,189,187,197,208,204,159,133,127,148,138,187,166,189,180,196,202,192,32767,32767,32767,32767,32767,32767,145,164,32767,222,223,244,268,273,273,335,365,437,297,447,376,512,522,520]} 1. d4 {[%emt 0:00:30]} d5 {[%emt 0:17:30]} 2. c4 {[%emt 0:00:00]} c6 {[%emt 0:00:30]} 3. Nf3 {[%emt 0:00:00]} Nf6 {[%emt 0:00:30]} 4. e3 {[%emt 0:00:30]} g6 {[%emt 0:00:30]} 5. Nc3 {[%emt 0:01:30]} Bg7 {[%emt 0:00:30]} 6. Be2 {[%emt 0:00:30]} O-O {[%emt 0:00:30]} 7. O-O {[%emt 0:00:00]} Be6 {[%emt 0:07:30]} 8. cxd5 {[%emt 0:07:00] LiveBook: 70 Games} cxd5 {[%emt 0:00:30]} 9. Qb3 {[%emt 0:02:30] D94: Grünfeldindisch (Geschlossenes System)} Nc6 $146 {[%emt 0:18:30]} ({Vorgänger:} 9... Qb6 10. Qxb6 axb6 11. Bd2 Ne4 12. Rfc1 Nc6 13. Be1 Rfc8 14. Nxe4 dxe4 15. Nd2 Nb4 16. Rxc8+ Rxc8 17. Nxe4 {½-½ (31) Predojevic,B (2604)-Vachier Lagrave,M (2768) Tromsoe 2014}) 10. Qxb7 {[%emt 0:08:30]} Na5 {[%emt 0:05:30]} 11. Qb5 {[%emt 0:00:30]} Rc8 12. Ne5 Qc7 13. f3 Rfd8 14. Qa4 Nc4 {[%emt 1:16:00]} 15. Nxc4 {[%emt 0:53:30]} dxc4 {[%emt 0:00:30]} 16. Bd2 {[%emt 0:13:30]} Bf5 {[%emt 0:05:28]} 17. Nb5 {[%emt 0:05:30]} Qb8 {[%emt 1:30:00]} 18. Bxc4 {[%emt 1:22:12]} a6 {[%emt 0:00:30] [#]} (18... Nd7 $16 {is a better defense.}) 19. Na3 $1 {[%emt 0:00:30]} Qxb2 {[%emt 0:00:30]} 20. Qb4 {[%emt 0:00:30]} Rb8 {[%emt 0:00:30]} 21. Qxb2 {[%emt 0:00:43]} Rxb2 {[%emt 0:00:35]} 22. Bc3 {[%emt 0:00:01]} Rbb8 {[%emt 0:00:30]} 23. e4 {[%emt 0:00:30]} Bc8 {[%emt 0:01:10]} 24. Rab1 {[%emt 0:00:45]} Bb7 {[%emt 0:02:38]} 25. Rb3 {[%emt 0:02:02]} Ba8 {[%emt 0:00:10]} (25... Nd7 $16 {kämpft weiter.} 26. Rfb1 Bc6 27. Rxb8 (27. Bxa6 Ra8 $16) 27... Rxb8 28. Rxb8+ Nxb8) 26. Rfb1 {[%emt 0:03:14]} Rxb3 {[%emt 0:01:20]} 27. Rxb3 {[%emt 0:00:06]} Ne8 {[%emt 0:03:17]} 28. Nc2 {[%emt 0:02:26]} ({Bloß nicht} 28. Bxa6 $6 Bxd4+ 29. Bxd4 Rxd4 $16) 28... Bc6 {[%emt 0:00:00]} 29. Bxa6 {[%emt 0:04:29]} Ba4 {[%emt 0:01:37]} 30. Rb2 {[%emt 0:00:08]} Ra8 {[%emt 0:01:12]} 31. Bb7 {[%emt 0:00:25]} Rb8 {[%emt 0:00:43]} 32. Ne3 {[%emt 0:00:21]} Nd6 {[%emt 0:00:12] [#]} 33. Ba6 $1 {[%emt 0:00:51]} Ra8 {[%emt 0:00:41]} 34. Bc4 {[%emt 0:02:46]} Nxc4 {[%emt 0:00:26]} 35. Nxc4 {[%emt 0:00:05]} Rc8 {[%emt 0:00:31]} 36. Rb4 {[%emt 0:00:04]} Bc2 {[%emt 0:00:19] [#]} 37. Bb2 $1 {[%emt 0:00:49]} Bd3 {[%emt 0:00:25]} 38. Ne3 {[%emt 0:01:32]} Bb1 {[%emt 0:00:45]} (38... Bh6 $16) 39. a4 {[%emt 0:01:23]} Ba2 {[%emt 0:00:37]} 40. d5 {[%emt 0:01:57]} Bf8 {[%emt 0:00:46]} 41. e5 {[%emt 0:01:17]} Bh6 {[%emt 0:00:10]} 42. f4 {[%emt 0:00:09]} Rd8 {[%emt 0:00:43]} 43. Rd4 {[%emt 0:01:13]} Kg7 {[%emt 0:00:34]} (43... f6 $142 44. exf6 exf6) 44. Ba3 {[%emt 0:00:46]} Rd7 {[%emt 0:00:36]} (44... Kf8 {is a better defense.} 45. Kf2 Ke8) 45. a5 {[%emt 0:00:37]} Ra7 $18 {[%emt 0:00:34]} 46. Bb4 {[%emt 0:00:06]} 1-0

[Event "Istanbul Open 2018"]
[Site "Istanbul"]
[Date "2018.09.02"]
[Round "3"]
[White "Guven, Oguz Kagan"]
[Black "Nuri, Murad"]
[Result "1/2-1/2"]
[ECO "B30"]
[WhiteElo "2022"]
[BlackElo "2284"]
[Annotator "NA"]
[PlyCount "31"]
[EventDate "2018.09.02"]
[EventType "swiss"]
[EventCountry "TUR"]
[SourceTitle "playchess.com"]
[Source "ChessBase"]
[SourceQuality "1"]
[TimeControl "5400+30"]

1. e4 {[%emt 0:05:30]} c5 {[%emt 0:04:30]} 2. Nf3 {[%emt 0:00:30]} Nf6 {[%emt 0:00:00]} 3. Nc3 {[%emt 0:00:30]} Nc6 {[%emt 0:02:00]} 4. Bb5 {[%emt 0:00:00]} Qc7 {[%emt 0:05:30]} 5. O-O {[%emt 0:00:00]} d6 {[%emt 0:15:30]} (5... e5 $11 {keeps the balance.}) 6. h3 {[%emt 0:15:30]} (6. d4 $14) 6... a6 {[%emt 0:06:30]} 7. Bxc6+ {[%emt 0:00:30]} Qxc6 {[%emt 0:00:00]} 8. e5 {[%emt 0:00:30]} dxe5 {[%emt 0:04:00]} 9. Nxe5 {[%emt 0:00:30]} Qd6 {[%emt 0:00:00]} 10. Re1 {[%emt 0:01:30]} e6 {[%emt 0:00:00]} 11. d3 {[%emt 0:00:30]} Be7 {[%emt 0:06:30]} 12. Bf4 $14 {[%emt 0:03:30]} Qd8 {[%emt 0:00:30]} 13. a4 {[%emt 0:05:30]} O-O {[%emt 0:00:30]} 14. Qf3 {[%emt 0:03:30]} Nd5 {[%emt 0:02:30]} 15. Nxd5 {[%emt 0:06:30]} exd5 {[%emt 0:00:00]} 16. Re2 {[%emt 0:02:30]} 1/2-1/2

[Event "Istanbul Open 2018"]
[Site "Istanbul"]
[Date "2018.09.02"]
[Round "3"]
[White "Kuseyri, Mehmet Ali"]
[Black "Darban, Morteza"]
[Result "0-1"]
[ECO "A42"]
[WhiteElo "1962"]
[BlackElo "2333"]
[Annotator "ChessBase"]
[PlyCount "46"]
[EventDate "2018.09.02"]
[EventType "swiss"]
[EventCountry "TUR"]
[SourceTitle "playchess.com"]
[Source "ChessBase"]
[SourceQuality "1"]
[TimeControl "5400+30"]

1. d4 g6 2. c4 Bg7 3. e4 d6 4. Nc3 Nd7 5. Nf3 e5 6. Be2 Ne7 7. h4 h6 8. dxe5 dxe5 9. Be3 Nc6 10. Qd2 Nf8 11. Nd5 Ne6 12. Nb4 Qxd2+ 13. Bxd2 Bd7 14. Nc2 Nc5 15. Be3 Nxe4 16. a4 a5 17. O-O O-O-O 18. Rfc1 {[%emt 0:57:00]} Bg4 {[%emt 1:13:00]} 19. Rd1 {[%emt 0:05:30]} f5 {[%emt 0:00:30]} 20. Rxd8+ {[%emt 0:01:30]} Rxd8 {[%emt 0:00:30]} 21. Rd1 {[%emt 0:00:30]} Rxd1+ {[%emt 0:04:30]} 22. Bxd1 {[%emt 0:00:00]} Nd6 {[%emt 0:00:30]} 23. c5 {[%emt 0:05:00]} Ne8 {[%emt 0:00:00]} 0-1

[Event "Istanbul Open 2018"]
[Site "Istanbul"]
[Date "2018.09.02"]
[Round "3"]
[White "Aydin, Kaan Ayhan"]
[Black "Ozkan, Taha"]
[Result "1-0"]
[ECO "B40"]
[WhiteElo "1877"]
[BlackElo "1997"]
[Annotator "NA"]
[PlyCount "57"]
[EventDate "2018.09.02"]
[EventType "swiss"]
[EventCountry "TUR"]
[SourceTitle "playchess.com"]
[Source "ChessBase"]
[SourceQuality "1"]
[TimeControl "5400+30"]

1. e4 {[%emt 0:00:30]} c5 {[%emt 0:00:30]} 2. Nf3 {[%emt 0:00:30]} e6 {[%emt 0:00:30]} 3. d4 {[%emt 0:00:00]} cxd4 {[%emt 0:00:00]} 4. Nxd4 {[%emt 0:00:00]} Qb6 {[%emt 0:00:00]} 5. Nb5 {[%emt 0:00:00]} a6 {[%emt 0:00:00]} 6. Be3 {[%emt 0:00:00]} Qa5+ {[%emt 0:00:00]} 7. N5c3 {[%emt 0:00:30]} Nf6 {[%emt 0:00:30]} 8. Nd2 {[%emt 0:00:00]} Qc7 {[%emt 0:00:30]} 9. Nc4 {[%emt 0:07:00]} Nc6 {[%emt 0:01:30]} 10. Bb6 {[%emt 0:05:30]} Qb8 {[%emt 0:01:30]} 11. Qe2 {[%emt 0:04:30]} Ne5 {[%emt 0:05:30]} 12. O-O-O {[%emt 0:01:30]} Be7 $16 {[%emt 0:02:30]} ({Black should play} 12... Nxc4 13. Qxc4 Be7) 13. Ne3 d6 14. f4 Ned7 15. Nc4 O-O 16. e5 Ne8 17. Bd4 b5 18. exd6 Nxd6 19. Nxd6 Bxd6 20. g3 Bb7 21. Bg2 Rd8 22. Bxb7 Qxb7 23. Rhe1 Bf8 24. Ne4 Rac8 25. Ng5 Nc5 {[%emt 0:55:30]} 26. Bxc5 {[%emt 1:15:00]} Rxd1+ {[%emt 0:05:30]} 27. Rxd1 {[%emt 0:00:30]} Rxc5 {[%emt 0:00:30]} 28. Qe4 {[%emt 0:03:30]} Qc7 {[%emt 0:03:30]} 29. Qxh7# {[%emt 0:00:00]} 1-0

[Event "Istanbul Open 2018"]
[Site "Istanbul"]
[Date "2018.09.03"]
[Round "3"]
[White "Emir, Emirhan"]
[Black "Ozsakallioglu, Akin"]
[Result "1/2-1/2"]
[ECO "A26"]
[WhiteElo "1852"]
[BlackElo "1861"]
[Annotator "NA RC"]
[PlyCount "106"]
[EventDate "2018.09.02"]
[EventType "swiss"]
[EventCountry "TUR"]
[SourceTitle "playchess.com"]
[Source "ChessBase"]
[SourceQuality "1"]
[TimeControl "5400+30"]

1. c4 {[%emt 0:00:30]} e5 {[%emt 0:00:30]} 2. Nc3 {[%emt 0:00:00]} Nc6 {[%emt 0:00:30]} 3. g3 {[%emt 0:00:00]} g6 {[%emt 0:00:00]} 4. Bg2 {[%emt 0:00:30]} Bg7 {[%emt 0:00:00]} 5. d3 {[%emt 0:00:30] LiveBook: 1043 Games} Nge7 {[%emt 0:00:00]} 6. Bg5 {[%emt 0:04:30] A26: English Opening vs King's Indian with ...Nc6 and d3} (6. Rb1 O-O 7. b4 a6 8. e3 d6 9. Nge2 Be6 10. Nd5 Qd7 11. O-O f5 12. a4 Bf7 13. b5 axb5 14. axb5 {½-½ (34) Izoria,Z (2599)-Li,R (2576) chess.com INT 2018}) 6... h6 {[%emt 0:05:00]} 7. Bd2 {[%emt 0:02:30]} d6 {[%emt 0:09:30]} 8. Rb1 {[%emt 0:01:30]} Be6 {[%emt 0:03:30]} 9. b4 {[%emt 0:13:30]} Qd7 $146 {[%emt 0:00:00]} ({Predecessor:} 9... d5 10. b5 Nd4 11. c5 O-O 12. e3 Ndf5 13. Qc2 d4 14. Na4 dxe3 15. fxe3 {½-½ (48) Malinicheva,L (2015)-Drogovoz,M (1791) Ivanovo 2011}) 10. Nd5 {[%emt 0:01:30]} Nd8 {[%emt 0:04:00]} 11. Qc1 {[%emt 0:04:30]} c6 {[%emt 0:12:30]} 12. Nxe7 Qxe7 13. b5 c5 14. Nf3 f5 15. O-O g5 16. Bc3 Bf6 17. e3 h5 18. Nd2 h4 19. f4 {[%emt 1:00:30]} Qh7 {[%emt 1:11:30]} 20. fxe5 {[%emt 0:07:30]} dxe5 {[%emt 0:06:30]} 21. g4 {[%emt 0:01:30]} h3 {[%emt 1:35:25]} 22. Bh1 {[%emt 1:16:00]} Qh4 {[%emt 0:00:30]} 23. Qd1 {[%emt 0:00:30]} f4 {[%emt 0:00:30]} 24. Ne4 {[%emt 0:00:30]} Bg7 {[%emt 0:00:30]} 25. Bf3 {[%emt 0:00:30]} O-O {[%emt 0:00:30]} 26. Qe1 {[%emt 0:00:30]} Qh6 {[%emt 0:00:30]} 27. Nxc5 {[%emt 0:00:30]} Rc8 {[%emt 0:01:52]} (27... Bf7 {was necessary.} 28. Bb4 Re8) 28. Nxe6 {[%emt 0:00:30]} Nxe6 {[%emt 0:00:48]} 29. Bxb7 {[%emt 0:00:30]} Rc7 {[%emt 0:00:55]} 30. Bd5 {[%emt 0:00:30]} Re8 {[%emt 0:00:59]} 31. exf4 {[%emt 0:00:30]} exf4 {[%emt 0:00:05]} 32. Bxg7 {[%emt 0:00:30]} Qxg7 {[%emt 0:02:33]} 33. b6 {[%emt 0:02:30]} axb6 {[%emt 0:00:45]} 34. Rxb6 {[%emt 0:00:30]} Rce7 {[%emt 0:00:16]} 35. Rxe6 {[%emt 0:00:30]} Rxe6 {[%emt 0:01:14]} (35... Kh8 {[%emt 0:00:45]}) 36. Bxe6+ {[%emt 0:00:30]} Kh8 {[%emt 0:00:30]} 37. Qe4 {[%emt 0:00:30]} Qb2 {[%emt 0:00:00]} 38. Qf3 {[%emt 0:18:05]} Rxe6 {[%emt 0:00:32]} 39. Qxh3+ {[%emt 0:00:02]} Kg7 {[%emt 0:00:08] [#]} 40. Qf3 $1 {[%emt 0:01:03]} Qxa2 {[%emt 0:00:54]} 41. Qd5 {[%emt 0:00:31]} Qa7+ {[%emt 0:00:05]} 42. c5 {[%emt 0:00:24]} Qe7 {[%emt 0:00:04] [#]} 43. Qd4+ $1 {[%emt 0:01:37]} Kg6 {[%emt 0:01:17]} 44. Qd5 {[%emt 0:02:18]} ({Weiss kommt nicht vorbei an} 44. h4 $1 $16 {[%cal Rh4g5]} Re5 45. hxg5 Qxc5 46. Rxf4) 44... Re5 {[%emt 0:00:26]} 45. Qg8+ {[%emt 0:01:46]} Kh6 {[%emt 0:00:20]} 46. d4 {[%emt 0:00:41]} Re2 {[%emt 0:00:15]} 47. Qh8+ {[%emt 0:00:35]} Kg6 {[%emt 0:00:06]} 48. Qg8+ {[%emt 0:00:18]} Kh6 {[%emt 0:00:04]} 49. Qd5 {[%emt 0:00:16]} Qe3+ {[%emt 0:01:39]} 50. Kh1 {[%emt 0:00:01]} Qh3 {[%emt 0:00:38]} 51. Qd6+ {[%emt 0:01:36]} Kh7 {[%emt 0:00:28]} 52. Qd7+ {[%emt 0:00:24]} Kh8 $11 {[%emt 0:00:28]} 53. Qd8+ {[%emt 0:00:29]} Kh7 {[%emt 0:00:09]} 1/2-1/2